[Event "NJSK 2023 Jeugd A"]
[Site "Almelo, Netherlands"]
[Date "2023.05.03"]
[Round "4.7"]
[White "Goudriaan, Rafael"]
[Black "Van Rootselaar, Rik"]
[Result "1/2-1/2"]
[TimeControl "90min/40moves + 30min + 30sec/move"]
[WhiteElo "1992"]
[BlackElo "1812"]

1. e4 {[%clk 01:30:58]} {[%emt 00:00:01]} c5 {[%clk 01:30:56]} {[%emt
00:00:05]} 2. Nc3 {[%clk 01:31:25]} {[%emt 00:00:03]} d6 {[%clk 01:31:16]}
{[%emt 00:00:10]} 3. d4 {[%clk 01:31:51]} {[%emt 00:00:04]} cxd4 {[%clk
01:31:36]} {[%emt 00:00:10]} 4. Qxd4 {[%clk 01:32:19]} {[%emt 00:00:02]} Nc6
{[%clk 01:30:06]} {[%emt 00:02:00]} 5. Qd2 {[%clk 01:32:31]} {[%emt 00:00:17]}
e6 {[%clk 01:27:00]} {[%emt 00:03:37]} 6. b3 {[%clk 01:32:51]} {[%emt
00:00:10]} Nf6 {[%clk 01:26:42]} {[%emt 00:00:48]} 7. Bb2 {[%clk 01:33:13]}
{[%emt 00:00:08]} d5 {[%clk 01:21:08]} {[%emt 00:06:04]} 8. exd5 {[%clk
01:33:37]} {[%emt 00:00:05]} exd5 {[%clk 01:21:13]} {[%emt 00:00:25]} 9. O-O-O
{[%clk 01:33:53]} {[%emt 00:00:14]} Be6 {[%clk 01:17:07]} {[%emt 00:04:36]} 10.
Nge2 {[%clk 01:30:40]} {[%emt 00:03:43]} Qa5 {[%clk 01:12:31]} {[%emt
00:05:07]} 11. Kb1 {[%clk 01:28:24]} {[%emt 00:02:45]} O-O-O {[%clk 01:11:09]}
{[%emt 00:01:52]} 12. Nd4 {[%clk 01:08:47]} {[%emt 00:20:07]} Bc5 {[%clk
00:55:29]} {[%emt 00:16:11]} 13. Ncb5 {[%clk 01:05:43]} {[%emt 00:03:34]} Qb6
{[%clk 00:51:35]} {[%emt 00:04:23]} 14. f3 {[%clk 01:05:27]} {[%emt 00:00:46]}
Rhe8 {[%clk 00:49:37]} {[%emt 00:02:28]} 15. Bc3 {[%clk 01:00:50]} {[%emt
00:05:08]} Rd7 {[%clk 00:45:44]} {[%emt 00:04:22]} 16. a4 {[%clk 00:41:05]}
{[%emt 00:20:15]} a6 {[%clk 00:39:55]} {[%emt 00:06:20]} 17. a5 {[%clk
00:40:52]} {[%emt 00:00:42]} Qd8 {[%clk 00:40:21]} {[%emt 00:00:04]} 18. Nxc6
{[%clk 00:41:07]} {[%emt 00:00:15]} bxc6 {[%clk 00:40:45]} {[%emt 00:00:06]} 19.
Nd4 {[%clk 00:41:13]} {[%emt 00:00:24]} Kb7 {[%clk 00:40:17]} {[%emt 00:00:58]}
20. Bb4 {[%clk 00:31:24]} {[%emt 00:10:19]} Qe7 {[%clk 00:37:13]} {[%emt
00:03:34]} 21. Bxc5 {[%clk 00:27:15]} {[%emt 00:04:39]} Qxc5 {[%clk 00:37:38]}
{[%emt 00:00:05]} 22. b4 {[%clk 00:27:35]} {[%emt 00:00:10]} Qd6 {[%clk
00:37:27]} {[%emt 00:00:42]} 23. Nb3 {[%clk 00:27:47]} {[%emt 00:00:17]} Rb8
{[%clk 00:32:18]} {[%emt 00:05:39]} 24. Nc5+ {[%clk 00:27:05]} {[%emt
00:01:11]} Kc8 {[%clk 00:32:30]} {[%emt 00:00:19]} 25. Qd4 {[%clk 00:26:21]}
{[%emt 00:01:14]} Kd8 {[%clk 00:27:22]} {[%emt 00:05:39]} 26. Nxa6 {[%clk
00:23:54]} {[%emt 00:02:56]} Rdb7 {[%clk 00:27:12]} {[%emt 00:00:41]} 27. c3
{[%clk 00:23:44]} {[%emt 00:00:40]} Nd7 {[%clk 00:25:52]} {[%emt 00:01:50]} 28.
Nxb8 {[%clk 00:18:47]} {[%emt 00:05:27]} c5 {[%clk 00:24:27]} {[%emt 00:01:54]}
29. Qh4+ {[%clk 00:19:01]} {[%emt 00:00:16]} g5 {[%clk 00:24:34]} {[%emt
00:00:22]} 30. Qxg5+ {[%clk 00:18:58]} {[%emt 00:00:34]} f6 {[%clk 00:25:00]}
{[%emt 00:00:04]} 31. Qg3 {[%clk 00:19:07]} {[%emt 00:00:22]} Ne5 {[%clk
00:24:53]} {[%emt 00:00:36]} 32. Na6 {[%clk 00:18:52]} {[%emt 00:00:45]} cxb4
{[%clk 00:24:44]} {[%emt 00:00:38]} 33. c4 {[%clk 00:18:29]} {[%emt 00:00:55]}
Qxa6 {[%clk 00:24:41]} {[%emt 00:00:33]} 34. Qf4 {[%clk 00:17:38]} {[%emt
00:01:20]} Bf7 {[%clk 00:20:21]} {[%emt 00:04:51]} 35. Bd3 {[%clk 00:13:45]}
{[%emt 00:04:22]} Nxd3 {[%clk 00:18:12]} {[%emt 00:02:39]} 36. Rxd3 {[%clk
00:13:59]} {[%emt 00:00:16]} Bg6 {[%clk 00:18:35]} {[%emt 00:00:06]} 37. Rhd1
{[%clk 00:14:22]} {[%emt 00:00:07]} Ke7 {[%clk 00:15:22]} {[%emt 00:03:44]} 38.
Qe3+ {[%clk 00:10:46]} {[%emt 00:04:06]} Qe6 {[%clk 00:08:08]} {[%emt
00:07:44]} 39. Qxe6+ {[%clk 00:10:52]} {[%emt 00:00:24]} Kxe6 {[%clk 00:08:33]}
{[%emt 00:00:05]} 40. cxd5+ {[%clk 00:11:15]} {[%emt 00:00:08]} Kd6 {[%clk
00:09:00]} {[%emt 00:00:02]} 41. Kb2 {[%clk 00:11:11]} {[%emt 00:00:35]} Bxd3
{[%clk 00:09:24]} {[%emt 00:00:05]} 42. Rxd3 {[%clk 00:11:33]} {[%emt
00:00:08]} Rb5 {[%clk 00:09:31]} {[%emt 00:00:23]} 43. Rd4 {[%clk 00:09:41]}
{[%emt 00:02:21]} Rxa5 {[%clk 00:06:33]} {[%emt 00:03:29]} 44. Rxb4 {[%clk
00:09:40]} {[%emt 00:00:31]} Rxd5 {[%clk 00:06:23]} {[%emt 00:00:40]} 45. Kc3
{[%clk 00:09:56]} {[%emt 00:00:12]} Ke6 {[%clk 00:03:39]} {[%emt 00:03:16]} 46.
Rd4 {[%clk 00:09:03]} {[%emt 00:01:23]} Ra5 {[%clk 00:02:45]} {[%emt 00:01:24]}
47. Kd3 {[%clk 00:23:25]} {[%emt 00:16:09]} Kf5 {[%clk 00:30:24]} {[%emt
00:02:50]} 48. Ke3 {[%clk 00:23:19]} {[%emt 00:00:36]} Ra2 {[%clk 00:29:04]}
{[%emt 00:01:50]} 49. Rd5+ {[%clk 00:23:16]} {[%emt 00:00:33]} Kg6 {[%clk
00:28:43]} {[%emt 00:00:51]} 50. Rd2 {[%clk 00:23:39]} {[%emt 00:00:07]} Ra4
{[%clk 00:28:33]} {[%emt 00:00:39]} 51. Kf2 {[%clk 00:22:21]} {[%emt 00:01:48]}
Rb4 {[%clk 00:24:55]} {[%emt 00:04:09]} 52. Re2 {[%clk 00:22:24]} {[%emt
00:00:28]} Rb5 {[%clk 00:25:04]} {[%emt 00:00:20]} 53. Re4 {[%clk 00:21:57]}
{[%emt 00:00:58]} h5 {[%clk 00:23:26]} {[%emt 00:02:06]} 54. Kg3 {[%clk
00:21:28]} {[%emt 00:00:58]} Rg5+ {[%clk 00:22:56]} {[%emt 00:01:03]} 55. Kh3
{[%clk 00:21:44]} {[%emt 00:00:13]} Rf5 {[%clk 00:20:39]} {[%emt 00:02:47]} 56.
Kh4 {[%clk 00:17:59]} {[%emt 00:04:15]} Kh6 {[%clk 00:19:17]} {[%emt 00:01:51]}
57. f4 {[%clk 00:16:24]} {[%emt 00:02:06]} Rb5 {[%clk 00:18:49]} {[%emt
00:00:58]} 58. Re2 {[%clk 00:16:33]} {[%emt 00:00:21]} Kg6 {[%clk 00:18:52]}
{[%emt 00:00:27]} 59. Rf2 {[%clk 00:16:52]} {[%emt 00:00:12]} Rb4 {[%clk
00:18:29]} {[%emt 00:00:52]} 60. h3 {[%clk 00:16:56]} {[%emt 00:00:24]} Ra4
{[%clk 00:17:54]} {[%emt 00:01:07]} 61. g3 {[%clk 00:17:17]} {[%emt 00:00:09]}
Ra6 {[%clk 00:15:45]} {[%emt 00:02:39]} 62. Rb2 {[%clk 00:17:40]} {[%emt
00:00:07]} Ra5 {[%clk 00:15:24]} {[%emt 00:00:52]} 63. Rb7 {[%clk 00:17:27]}
{[%emt 00:00:42]} Rf5 {[%clk 00:15:29]} {[%emt 00:00:25]} 64. Ra7 {[%clk
00:17:26]} {[%emt 00:00:30]} Kh6 {[%clk 00:15:40]} {[%emt 00:00:20]} 65. Ra8
{[%clk 00:17:44]} {[%emt 00:00:11]} Kg7 {[%clk 00:15:38]} {[%emt 00:00:33]} 66.
Ra4 {[%clk 00:16:56]} {[%emt 00:01:17]} Rb5 {[%clk 00:15:45]} {[%emt 00:00:24]}
67. Ra7+ {[%clk 00:15:53]} {[%emt 00:01:32]} Kg6 {[%clk 00:16:03]} {[%emt
00:00:12]} 68. g4 {[%clk 00:10:34]} {[%emt 00:05:50]} hxg4 {[%clk 00:15:49]}
{[%emt 00:00:44]} 69. Kxg4 {[%clk 00:11:02]} Rb1 {[%clk 00:14:19]} {[%emt
00:02:01]} 70. Ra3 {[%clk 00:10:18]} {[%emt 00:01:15]} Rg1+ {[%clk 00:12:56]}
{[%emt 00:01:52]} 71. Rg3 {[%clk 00:08:45]} {[%emt 00:02:04]} Rf1 {[%clk
00:13:20]} {[%emt 00:00:05]} 72. Rg2 {[%emt 00:05:26]} Rb1 {[%clk 00:09:39]} 73.
h4 {[%clk 00:07:52]} {[%emt 00:00:38]} Rb5 {[%clk 00:08:02]} {[%emt 00:02:07]}
74. Rg3 {[%clk 00:07:10]} {[%emt 00:01:12]} Ra5 {[%clk 00:07:58]} {[%emt
00:00:34]} 75. Rb3 {[%clk 00:06:53]} {[%emt 00:00:46]} f5+ {[%clk 00:07:18]}
{[%emt 00:01:11]} 76. Kh3 {[%clk 00:07:22]} {[%emt 00:00:02]} Ra4 {[%clk
00:07:08]} {[%emt 00:00:39]} 77. Kg3 {[%clk 00:07:31]} {[%emt 00:00:22]} Ra1
{[%clk 00:07:14]} {[%emt 00:00:24]} 78. Rb6+ {[%clk 00:07:56]} {[%emt
00:00:05]} Kh5 {[%clk 00:07:33]} {[%emt 00:00:10]} 79. Rb5 {[%clk 00:08:09]}
{[%emt 00:00:17]} Ra3+ {[%clk 00:07:44]} {[%emt 00:00:19]} 80. Kf2 {[%clk
00:08:33]} {[%emt 00:00:06]} Kg4 {[%clk 00:07:09]} {[%emt 00:01:05]} 81. h5
{[%clk 00:08:11]} {[%emt 00:00:52]} Rh3 {[%clk 00:06:38]} {[%emt 00:01:01]} 82.
h6 {[%clk 00:08:38]} {[%emt 00:00:03]} Rxh6 {[%clk 00:06:44]} {[%emt 00:00:24]}
83. Rb3 {[%clk 00:09:04]} {[%emt 00:00:04]} Rh2+ {[%clk 00:06:51]} {[%emt
00:00:23]} 84. Kg1 {[%clk 00:09:25]} {[%emt 00:00:08]} Re2 {[%clk 00:06:40]}
{[%emt 00:00:41]} 85. Kf1 {[%clk 00:09:43]} {[%emt 00:00:12]} Re4 {[%clk
00:06:43]} {[%emt 00:00:27]} 86. Kf2 {[%clk 00:10:01]} {[%emt 00:00:13]} Rxf4+
{[%clk 00:07:01]} {[%emt 00:00:13]} 87. Kg1 {[%clk 00:10:28]} {[%emt 00:00:01]}
Ra4 {[%clk 00:07:18]} {[%emt 00:00:14]} 88. Kf1 {[%clk 00:10:44]} {[%emt
00:00:13]} Ra1+ {[%clk 00:07:17]} {[%emt 00:00:32]} 89. Kf2 {[%clk 00:10:49]}
{[%emt 00:00:24]} Ra2+ {[%clk 00:07:43]} {[%emt 00:00:06]} 90. Kf1 {[%clk
00:11:13]} {[%emt 00:00:05]} f4 {[%clk 00:08:07]} {[%emt 00:00:06]} 91. Kg1
{[%clk 00:11:18]} {[%emt 00:00:25]} Re2 {[%clk 00:08:10]} {[%emt 00:00:27]} 92.
Kf1 {[%clk 00:11:14]} {[%emt 00:00:33]} Re3 {[%clk 00:08:15]} {[%emt 00:00:26]}
1/2-1/2

[Event "NJSK 2023 Jeugd A"]
[Site "Almelo, Netherlands"]
[Date "2023.05.03"]
[Round "4.8"]
[White "Bon, Gijs"]
[Black "Knol, Daniel"]
[Result "0-1"]
[TimeControl "90min/40moves + 30min + 30sec/move"]
[WhiteElo "1805"]
[BlackElo "1819"]

1. e4 {[%clk 01:30:58]} {[%emt 00:00:02]} c5 {[%clk 01:30:57]} {[%emt
00:00:03]} 2. Nf3 {[%clk 01:31:23]} {[%emt 00:00:05]} Nc6 {[%clk 01:31:24]}
{[%emt 00:00:03]} 3. c3 {[%clk 01:31:45]} {[%emt 00:00:08]} d5 {[%clk
01:31:50]} {[%emt 00:00:04]} 4. exd5 {[%clk 01:32:11]} {[%emt 00:00:04]} Qxd5
{[%clk 01:32:17]} {[%emt 00:00:03]} 5. d4 {[%clk 01:32:33]} {[%emt 00:00:07]}
Nf6 {[%clk 01:32:43]} {[%emt 00:00:04]} 6. Be2 {[%clk 01:32:41]} {[%emt
00:00:22]} cxd4 {[%clk 01:32:29]} {[%emt 00:00:46]} 7. cxd4 {[%clk 01:33:00]}
{[%emt 00:00:11]} e6 {[%clk 01:32:50]} {[%emt 00:00:09]} 8. Nc3 {[%clk
01:32:26]} {[%emt 00:01:03]} Qd6 {[%clk 01:33:19]} {[%emt 00:00:01]} 9. O-O
{[%clk 01:32:35]} {[%emt 00:00:20]} Be7 {[%clk 01:33:46]} {[%emt 00:00:04]} 10.
Be3 {[%clk 01:30:29]} {[%emt 00:02:35]} O-O {[%clk 01:33:35]} {[%emt 00:00:42]}
11. Rc1 {[%clk 01:27:42]} {[%emt 00:03:17]} a6 {[%clk 01:33:38]} {[%emt
00:00:28]} 12. Na4 {[%clk 01:24:56]} {[%emt 00:03:15]} Nd5 {[%clk 01:26:50]}
{[%emt 00:07:17]} 13. Qd2 {[%clk 01:19:21]} {[%emt 00:06:06]} Bf6 {[%clk
01:15:49]} {[%emt 00:11:31]} 14. Nc5 {[%clk 01:12:33]} {[%emt 00:07:18]} b6
{[%clk 00:43:25]} {[%emt 00:32:54]} 15. Ne4 {[%clk 00:56:15]} {[%emt 00:16:47]}
Qd7 {[%clk 00:43:44]} {[%emt 00:00:11]} 16. Nxf6+ {[%clk 00:55:43]} {[%emt
00:01:02]} Nxf6 {[%clk 00:44:13]} {[%emt 00:00:02]} 17. Ne5 {[%clk 00:55:43]}
{[%emt 00:00:29]} Nxe5 {[%emt 00:00:33]} 18. dxe5 {[%clk 00:56:05]} {[%emt
00:00:06]} Qxd2 {[%clk 00:40:31]} {[%emt 00:04:12]} 19. Bxd2 {[%clk 00:56:29]}
{[%emt 00:00:06]} Nd5 {[%clk 00:40:41]} {[%emt 00:00:19]} 20. Bf3 {[%clk
00:51:50]} {[%emt 00:05:09]} Bb7 {[%clk 00:40:56]} {[%emt 00:00:16]} 21. Be3
{[%clk 00:52:15]} {[%emt 00:00:05]} Nxe3 {[%clk 00:37:46]} {[%emt 00:03:40]} 22.
Bxb7 {[%clk 00:48:14]} {[%emt 00:04:31]} Nxf1 {[%clk 00:38:00]} {[%emt
00:00:16]} 23. Bxa8 {[%clk 00:48:38]} {[%emt 00:00:06]} Nxh2 {[%clk 00:38:12]}
{[%emt 00:00:18]} 24. Kxh2 {[%clk 00:46:51]} {[%emt 00:02:16]} Rxa8 {[%clk
00:38:41]} {[%emt 00:00:02]} 25. a4 {[%clk 00:44:35]} {[%emt 00:02:46]} h6
{[%clk 00:36:07]} {[%emt 00:03:04]} 26. Rc7 {[%clk 00:44:56]} {[%emt 00:00:10]}
Rb8 {[%clk 00:32:42]} {[%emt 00:03:55]} 27. b4 {[%clk 00:44:43]} {[%emt
00:00:43]} b5 {[%clk 00:29:53]} {[%emt 00:03:19]} 28. a5 {[%clk 00:44:54]}
{[%emt 00:00:18]} Rd8 {[%clk 00:30:05]} {[%emt 00:00:18]} 29. Ra7 {[%clk
00:44:41]} {[%emt 00:00:43]} Rd4 {[%clk 00:30:34]} {[%emt 00:00:01]} 30. Rxa6
{[%clk 00:45:00]} {[%emt 00:00:11]} Rxb4 {[%clk 00:31:03]} {[%emt 00:00:01]} 31.
Ra8+ {[%clk 00:45:02]} {[%emt 00:00:28]} Kh7 {[%clk 00:31:31]} {[%emt
00:00:01]} 32. a6 {[%clk 00:45:33]} {[%emt 00:00:31]} Ra4 {[%clk 00:32:25]}
{[%emt 00:00:05]} 33. a7 {[%clk 00:45:50]} {[%emt 00:00:14]} b4 {[%clk
00:32:38]} {[%emt 00:00:16]} 34. f4 {[%clk 00:42:15]} {[%emt 00:04:04]} b3
{[%clk 00:33:02]} {[%emt 00:00:07]} 35. Rb8 {[%clk 00:41:42]} {[%emt 00:01:02]}
Rxa7 {[%clk 00:33:31]} {[%emt 00:00:02]} 36. Rxb3 {[%clk 00:42:02]} {[%emt
00:00:10]} g5 {[%clk 00:33:26]} {[%emt 00:00:35]} 37. g3 {[%clk 00:41:45]}
{[%emt 00:00:47]} Ra4 {[%clk 00:33:37]} {[%emt 00:00:19]} 38. Rf3 {[%clk
00:40:36]} {[%emt 00:01:39]} Kg6 {[%clk 00:33:46]} {[%emt 00:00:21]} 39. fxg5
{[%clk 00:38:14]} {[%emt 00:02:51]} hxg5 {[%clk 00:34:03]} {[%emt 00:00:14]} 40.
Re3 {[%clk 00:38:22]} {[%emt 00:00:21]} g4 {[%clk 00:34:17]} {[%emt 00:00:17]}
41. Re2 {[%clk 00:38:36]} {[%emt 00:00:16]} Ra5 {[%clk 00:31:51]} {[%emt
00:02:56]} 42. Re4 {[%clk 00:35:39]} {[%emt 00:03:26]} Kf5 {[%clk 00:31:16]}
{[%emt 00:01:06]} 43. Rf4+ {[%clk 00:35:33]} {[%emt 00:00:36]} Kxe5 {[%clk
00:31:45]} {[%emt 00:00:01]} 44. Rxf7 {[%clk 00:35:54]} {[%emt 00:00:09]} Ra2+
{[%clk 00:28:59]} {[%emt 00:03:16]} 45. Kg1 {[%clk 00:36:20]} {[%emt 00:00:04]}
Ra4 {[%clk 00:26:58]} {[%emt 00:02:30]} 46. Kf2 {[%clk 00:35:07]} {[%emt
00:01:43]} Kd5 {[%clk 00:26:31]} {[%emt 00:00:57]} 47. Rf4 {[%clk 00:34:45]}
{[%emt 00:00:52]} Rxf4+ {[%clk 00:26:41]} {[%emt 00:00:21]} 0-1

[Event "NJSK 2023 Jeugd A"]
[Site "Almelo, Netherlands"]
[Date "2023.05.04"]
[Round "5.1"]
[White "Van der Hagen, Loek"]
[Black "De Winter, Arthur"]
[Result "0-1"]
[TimeControl "90min/40moves + 30min + 30sec/move"]
[WhiteElo "2273"]
[BlackElo "2374"]

1. d4 {[%clk 01:30:57]} {[%emt 00:00:02]} Nf6 {[%clk 01:30:55]} {[%emt
00:00:03]} 2. c4 {[%clk 01:31:23]} {[%emt 00:00:06]} g6 {[%clk 01:31:21]}
{[%emt 00:00:04]} 3. Nc3 {[%clk 01:31:49]} {[%emt 00:00:05]} Bg7 {[%clk
01:31:45]} {[%emt 00:00:05]} 4. e4 {[%clk 01:32:13]} {[%emt 00:00:06]} d6
{[%clk 01:32:14]} {[%emt 00:00:01]} 5. h3 {[%clk 01:32:36]} {[%emt 00:00:07]}
O-O {[%clk 01:32:40]} {[%emt 00:00:04]} 6. Be3 {[%clk 01:32:58]} {[%emt
00:00:09]} Nbd7 {[%clk 01:33:02]} {[%emt 00:00:07]} 7. Nf3 {[%clk 01:31:56]}
{[%emt 00:01:32]} e5 {[%clk 01:33:25]} {[%emt 00:00:07]} 8. d5 {[%clk
01:32:13]} {[%emt 00:00:13]} Nc5 {[%clk 01:33:53]} {[%emt 00:00:03]} 9. Nd2
{[%clk 01:32:28]} {[%emt 00:00:15]} a5 {[%clk 01:34:19]} {[%emt 00:00:03]} 10.
g4 {[%clk 01:32:10]} {[%emt 00:00:48]} c6 {[%clk 01:34:46]} {[%emt 00:00:03]}
11. Qc2 {[%clk 01:28:43]} {[%emt 00:03:57]} a4 {[%clk 01:33:40]} {[%emt
00:01:36]} 12. Be2 {[%clk 01:25:01]} {[%emt 00:04:11]} Qa5 {[%clk 01:28:10]}
{[%emt 00:06:00]} 13. g5 {[%clk 01:21:51]} {[%emt 00:03:40]} Ne8 {[%clk
01:22:10]} {[%emt 00:06:29]} 14. h4 {[%clk 01:19:28]} {[%emt 00:02:53]} f5
{[%clk 01:17:21]} {[%emt 00:05:19]} 15. f3 {[%clk 01:11:34]} {[%emt 00:08:24]}
Bd7 {[%clk 01:11:44]} {[%emt 00:06:07]} 16. h5 {[%clk 01:00:30]} {[%emt
00:11:35]} cxd5 {[%clk 00:59:23]} {[%emt 00:12:52]} 17. cxd5 {[%clk 00:59:31]}
{[%emt 00:01:29]} b5 {[%clk 00:59:15]} {[%emt 00:00:38]} 18. h6 {[%clk
00:59:20]} {[%emt 00:00:40]} Bh8 {[%clk 00:59:15]} {[%emt 00:00:30]} 19. a3
{[%clk 00:55:30]} {[%emt 00:04:20]} Rc8 {[%clk 00:50:41]} {[%emt 00:09:04]} 20.
Rg1 {[%clk 00:50:28]} {[%emt 00:05:33]} Nc7 {[%clk 00:46:52]} {[%emt 00:04:19]}
21. Rc1 {[%clk 00:24:06]} {[%emt 00:26:52]} N7a6 {[%clk 00:46:18]} {[%emt
00:01:04]} 22. Qb1 {[%clk 00:23:17]} {[%emt 00:01:19]} b4 {[%clk 00:34:20]}
{[%emt 00:12:28]} 23. axb4 {[%clk 00:16:07]} {[%emt 00:07:40]} Nxb4 {[%clk
00:34:09]} {[%emt 00:00:41]} 24. Kd1 {[%clk 00:15:56]} {[%emt 00:00:40]} Nb3
{[%clk 00:28:34]} {[%emt 00:06:05]} 25. Nxb3 {[%clk 00:16:18]} {[%emt
00:00:08]} axb3 {[%clk 00:29:00]} {[%emt 00:00:03]} 26. Qa1 {[%clk 00:12:00]}
{[%emt 00:04:49]} Na2 {[%clk 00:28:25]} {[%emt 00:01:05]} 27. Bd2 {[%clk
00:07:54]} {[%emt 00:04:36]} Qb6 {[%clk 00:27:39]} {[%emt 00:01:16]} 28. Rg2
{[%clk 00:05:34]} {[%emt 00:02:50]} Nxc1 {[%clk 00:27:24]} {[%emt 00:00:45]} 29.
Kxc1 {[%clk 00:05:29]} {[%emt 00:00:35]} fxe4 {[%clk 00:27:38]} {[%emt
00:00:15]} 30. fxe4 {[%clk 00:05:52]} {[%emt 00:00:07]} Bh3 {[%clk 00:26:28]}
{[%emt 00:01:40]} 31. Rg3 {[%clk 00:06:18]} {[%emt 00:00:04]} Qf2 {[%clk
00:25:55]} {[%emt 00:01:03]} 32. Rxh3 {[%clk 00:05:32]} {[%emt 00:01:17]} Qxe2
{[%clk 00:25:57]} {[%emt 00:00:28]} 0-1

[Event "NJSK 2023 Jeugd A"]
[Site "Almelo, Netherlands"]
[Date "2023.05.04"]
[Round "5.2"]
[White "Slagboom, Leandro"]
[Black "Achuthan, Dylan"]
[Result "1-0"]
[TimeControl "90min/40moves + 30min + 30sec/move"]
[WhiteElo "2228"]
[BlackElo "2045"]

1. d4 {[%clk 01:30:58]} {[%emt 00:00:01]} d5 {[%clk 01:30:07]} {[%emt
00:00:53]} 2. Nf3 {[%clk 01:31:10]} {[%emt 00:00:17]} Nf6 {[%clk 01:30:27]}
{[%emt 00:00:10]} 3. c4 {[%clk 01:30:50]} {[%emt 00:00:51]} dxc4 {[%clk
01:30:49]} {[%emt 00:00:08]} 4. e3 {[%clk 01:31:03]} {[%emt 00:00:17]} e6
{[%clk 01:31:14]} {[%emt 00:00:05]} 5. Bxc4 {[%clk 01:31:29]} {[%emt 00:00:05]}
c5 {[%clk 01:31:41]} {[%emt 00:00:03]} 6. O-O {[%clk 01:30:30]} {[%emt
00:01:29]} a6 {[%clk 01:31:05]} {[%emt 00:01:06]} 7. Re1 {[%clk 01:23:08]}
{[%emt 00:07:51]} Nc6 {[%clk 01:31:21]} {[%emt 00:00:15]} 8. Nc3 {[%clk
01:19:55]} {[%emt 00:03:43]} b5 {[%clk 01:31:20]} {[%emt 00:00:30]} 9. Bb3
{[%clk 01:17:33]} {[%emt 00:02:53]} Be7 {[%clk 01:26:45]} {[%emt 00:05:05]} 10.
d5 {[%clk 01:12:50]} {[%emt 00:05:13]} exd5 {[%clk 01:22:25]} {[%emt 00:04:50]}
11. Bxd5 {[%clk 01:10:58]} {[%emt 00:02:22]} Nxd5 {[%clk 01:09:53]} {[%emt
00:13:03]} 12. Nxd5 {[%clk 01:11:23]} {[%emt 00:00:05]} O-O {[%clk 01:02:38]}
{[%emt 00:07:45]} 13. e4 {[%clk 01:09:46]} {[%emt 00:02:07]} Bg4 {[%clk
00:58:04]} {[%emt 00:05:04]} 14. h3 {[%clk 01:06:54]} {[%emt 00:03:22]} Bxf3
{[%clk 00:44:22]} {[%emt 00:14:12]} 15. Qxf3 {[%clk 01:07:18]} {[%emt
00:00:07]} Bf6 {[%clk 00:44:44]} {[%emt 00:00:08]} 16. Nxf6+ {[%clk 01:03:01]}
{[%emt 00:04:46]} Qxf6 {[%clk 00:45:07]} {[%emt 00:00:07]} 17. Qxf6 {[%clk
01:02:16]} {[%emt 00:01:15]} gxf6 {[%clk 00:45:36]} {[%emt 00:00:02]} 18. Be3
{[%clk 00:57:56]} {[%emt 00:04:49]} c4 {[%clk 00:41:40]} {[%emt 00:04:26]} 19.
Bc5 {[%clk 00:31:38]} {[%emt 00:26:48]} Rfc8 {[%clk 00:36:15]} {[%emt
00:05:56]} 20. f4 {[%clk 00:31:09]} {[%emt 00:00:58]} Rd8 {[%clk 00:16:09]}
{[%emt 00:20:36]} 21. Rad1 {[%clk 00:29:03]} {[%emt 00:02:37]} Kg7 {[%clk
00:16:11]} {[%emt 00:00:28]} 22. Rd5 {[%clk 00:17:42]} {[%emt 00:11:51]} f5
{[%clk 00:14:35]} {[%emt 00:02:06]} 23. Rxf5 {[%clk 00:14:30]} {[%emt
00:03:42]} Rd2 {[%clk 00:14:14]} {[%emt 00:00:51]} 24. Re3 {[%clk 00:14:55]}
{[%emt 00:00:05]} Rg8 {[%clk 00:11:55]} {[%emt 00:02:48]} 25. Rd5 {[%clk
00:12:22]} {[%emt 00:03:02]} Rxb2 {[%clk 00:11:06]} {[%emt 00:01:19]} 26. Rd6
{[%clk 00:12:15]} {[%emt 00:00:37]} Rb1+ {[%clk 00:10:05]} {[%emt 00:01:31]} 27.
Kh2 {[%clk 00:11:48]} {[%emt 00:00:57]} Rc8 {[%clk 00:09:59]} {[%emt 00:00:36]}
28. Rg3+ {[%clk 00:07:45]} {[%emt 00:04:33]} Kh8 {[%clk 00:10:28]} 29. Rf6
{[%clk 00:04:04]} {[%emt 00:04:10]} Rd1 {[%clk 00:08:13]} {[%emt 00:02:45]} 30.
Rxf7 {[%clk 00:03:55]} {[%emt 00:00:40]} Rg8 {[%clk 00:08:42]} 31. Rc7 {[%clk
00:02:46]} {[%emt 00:01:39]} Nd4 {[%clk 00:08:04]} {[%emt 00:01:07]} 32. Be7
{[%clk 00:00:49]} {[%emt 00:02:27]} Rxg3 {[%clk 00:06:49]} {[%emt 00:01:45]} 33.
Bf6+ {[%clk 00:01:09]} {[%emt 00:00:10]} Kg8 {[%clk 00:06:55]} {[%emt
00:00:23]} 34. Kxg3 {[%clk 00:01:35]} {[%emt 00:00:04]} Rd3+ {[%clk 00:06:31]}
{[%emt 00:00:54]} 35. Kg4 {[%clk 00:01:39]} {[%emt 00:00:26]} c3 {[%clk
00:05:11]} {[%emt 00:01:49]} 36. Bxd4 {[%clk 00:01:21]} {[%emt 00:00:48]} Rxd4
{[%clk 00:05:40]} {[%emt 00:00:02]} 37. Rxc3 {[%clk 00:01:37]} {[%emt
00:00:15]} Ra4 {[%clk 00:04:59]} {[%emt 00:01:10]} 38. Kf5 {[%clk 00:01:05]}
{[%emt 00:01:02]} Rxa2 {[%clk 00:05:10]} {[%emt 00:00:19]} 39. Kf6 {[%clk
00:01:10]} {[%emt 00:00:25]} h5 {[%clk 00:05:24]} {[%emt 00:00:16]} 40. e5
{[%clk 00:00:49]} {[%emt 00:00:52]} Ra4 {[%clk 00:01:02]} {[%emt 00:04:53]} 41.
f5 {[%clk 00:00:53]} {[%emt 00:00:26]} Rc4 {[%clk 00:01:16]} {[%emt 00:00:15]}
42. Rxc4 {[%clk 00:01:03]} {[%emt 00:00:20]} bxc4 {[%clk 00:01:39]} {[%emt
00:00:07]} 43. e6 {[%clk 00:01:29]} {[%emt 00:00:04]} Kf8 {[%clk 00:02:01]}
{[%emt 00:00:08]} 44. e7+ {[%clk 00:01:54]} {[%emt 00:00:05]} Ke8 {[%clk
00:02:28]} {[%emt 00:00:03]} 45. Ke6 {[%clk 00:02:19]} {[%emt 00:00:06]} 1-0